[Event "*** Titled Tuesday Blitz"]
[Site "Chess.com"]
[Date "2020.03.03"]
[Round "7"]
[White "Willychess95"]
[Black "Rsnr"]
[Result "1-0"]
[WhiteElo "2642"]
[BlackElo "2788"]
[TimeControl "180+1"]
[EndTime "14:16:40 PST"]
[Termination "Willychess95 won by resignation"]

1. e4 {[%clk 0:03:00]} 1... c6 {[%clk 0:03:00.5]} 2. Nc3 {[%clk 0:02:44]} 2...
d5 {[%clk 0:03:01.4]} 3. Nf3 {[%clk 0:02:43.9]} 3... Bg4 {[%clk 0:03:01.5]} 4.
d4 {[%clk 0:02:43.4]} 4... e6 {[%clk 0:03:01.4]} 5. h3 {[%clk 0:02:40.3]} 5...
Bh5 {[%clk 0:03:01.7]} 6. exd5 {[%clk 0:02:35.7]} 6... cxd5 {[%clk 0:03:02.6]}
7. Bf4 {[%clk 0:02:32.6]} 7... Nc6 {[%clk 0:03:02.3]} 8. Bb5 {[%clk 0:02:28.1]}
8... Bd6 {[%clk 0:02:59.6]} 9. Bxd6 {[%clk 0:02:23]} 9... Qxd6 {[%clk
0:03:00.5]} 10. g4 {[%clk 0:02:23.1]} 10... Bg6 {[%clk 0:03:00.6]} 11. Ne5
{[%clk 0:02:23.3]} 11... Ne7 {[%clk 0:02:57.7]} 12. Qd2 {[%clk 0:02:13.6]} 12...
f6 {[%clk 0:02:36.4]} 13. Nxg6 {[%clk 0:02:05.2]} 13... Nxg6 {[%clk 0:02:37.3]}
14. O-O-O {[%clk 0:02:04.6]} 14... a6 {[%clk 0:01:55.8]} 15. Bxc6+ {[%clk
0:01:59.6]} 15... Qxc6 {[%clk 0:01:56.7]} 16. h4 {[%clk 0:01:56.6]} 16... Ne7
{[%clk 0:01:08.2]} 17. Rhe1 {[%clk 0:01:50.4]} 17... O-O-O {[%clk 0:00:54.3]}
18. Qe3 {[%clk 0:01:37]} 18... Rd6 {[%clk 0:00:46.7]} 19. h5 {[%clk 0:01:30.4]}
19... Re8 {[%clk 0:00:38.9]} 20. f4 {[%clk 0:01:25.1]} 20... b5 {[%clk
0:00:38.6]} 21. Kb1 {[%clk 0:01:24.2]} 21... Kb7 {[%clk 0:00:38.9]} 22. a3
{[%clk 0:01:23.2]} 22... Nc8 {[%clk 0:00:38.8]} 23. Na2 {[%clk 0:01:19.9]} 23...
Rdd8 {[%clk 0:00:31.1]} 24. Nc1 {[%clk 0:01:15.8]} 24... Nd6 {[%clk 0:00:28.4]}
25. Nb3 {[%clk 0:01:10.9]} 25... Kb6 {[%clk 0:00:08.8]} 26. Qd3 {[%clk
0:01:06.6]} 26... Ne4 {[%clk 0:00:07.7]} 27. Re2 {[%clk 0:00:55.9]} 27... f5
{[%clk 0:00:08]} 28. g5 {[%clk 0:00:52.4]} 28... Rc8 {[%clk 0:00:08.6]} 29. Rde1
{[%clk 0:00:46.4]} 29... Qd6 {[%clk 0:00:08]} 30. Qe3 {[%clk 0:00:38.5]} 30...
Rc6 {[%clk 0:00:08.2]} 31. c3 {[%clk 0:00:31.6]} 31... a5 {[%clk 0:00:07]} 32.
Nc1 {[%clk 0:00:23.7]} 32... Rec8 {[%clk 0:00:05.8]} 33. Nd3 {[%clk 0:00:19.9]}
33... Rxc3 {[%clk 0:00:06]} 34. bxc3 {[%clk 0:00:11.5]} 34... Qxa3 {[%clk
0:00:06.5]} 35. Rc1 {[%clk 0:00:05.3]} 35... Rxc3 {[%clk 0:00:05.9]} 36. Rxc3
{[%clk 0:00:04.4]} 36... Nxc3+ {[%clk 0:00:06.8]} 37. Kc2 {[%clk 0:00:04]} 37...
Qa2+ {[%clk 0:00:02.9]} 38. Kxc3 {[%clk 0:00:04]} 38... b4+ {[%clk 0:00:03.6]}
39. Nxb4 {[%clk 0:00:04.3]} 39... axb4+ {[%clk 0:00:04.3]} 40. Kxb4 {[%clk
0:00:05.2]} 40... Qc4+ {[%clk 0:00:02.5]} 41. Ka3 {[%clk 0:00:05.6]} 41... Ka5
{[%clk 0:00:02.1]} 42. Kb2 {[%clk 0:00:04.7]} 42... Qb4+ {[%clk 0:00:01.8]} 43.
Kc2 {[%clk 0:00:04.7]} 43... Qc4+ {[%clk 0:00:02.1]} 44. Qc3+ {[%clk 0:00:04.8]}
1-0

[Event "*** Titled Tuesday Blitz"]
[Site "Chess.com"]
[Date "2020.03.03"]
[Round "7"]
[White "Martins-BR"]
[Black "FearNoEvil12"]
[Result "0-1"]
[WhiteElo "2314"]
[BlackElo "2027"]
[TimeControl "180+1"]
[EndTime "14:16:41 PST"]
[Termination "FearNoEvil12 won on time"]

1. e4 {[%clk 0:03:00.9]} 1... a6 {[%clk 0:02:57.8]} 2. d4 {[%clk 0:02:59.8]}
2... b5 {[%clk 0:02:58.1]} 3. Bd3 {[%clk 0:02:59.5]} 3... Bb7 {[%clk 0:02:58.5]}
4. Nf3 {[%clk 0:02:58.9]} 4... e6 {[%clk 0:02:58.9]} 5. Qe2 {[%clk 0:02:57.4]}
5... Nf6 {[%clk 0:02:59.3]} 6. c3 {[%clk 0:02:54.9]} 6... d6 {[%clk 0:02:59.3]}
7. Bg5 {[%clk 0:02:52.3]} 7... h6 {[%clk 0:02:58.4]} 8. Bh4 {[%clk 0:02:52.2]}
8... Be7 {[%clk 0:02:56.6]} 9. Nbd2 {[%clk 0:02:49.8]} 9... Nbd7 {[%clk
0:02:56.4]} 10. h3 {[%clk 0:02:35.6]} 10... g5 {[%clk 0:02:50.5]} 11. Bg3 {[%clk
0:02:34.5]} 11... Rg8 {[%clk 0:02:50.4]} 12. O-O-O {[%clk 0:02:32.9]} 12... c5
{[%clk 0:02:47.5]} 13. e5 {[%clk 0:02:25.5]} 13... dxe5 {[%clk 0:02:44.6]} 14.
dxe5 {[%clk 0:02:24.4]} 14... Nd5 {[%clk 0:02:44.9]} 15. Ne4 {[%clk 0:02:21.9]}
15... Qb6 {[%clk 0:02:37.6]} 16. Nd6+ {[%clk 0:02:16.2]} 16... Bxd6 {[%clk
0:02:36.6]} 17. exd6 {[%clk 0:02:14.8]} 17... c4 {[%clk 0:02:33.5]} 18. Be4
{[%clk 0:02:00.4]} 18... O-O-O {[%clk 0:02:30.8]} 19. a3 {[%clk 0:01:50]} 19...
N7f6 {[%clk 0:02:25]} 20. Bc2 {[%clk 0:01:41.4]} 20... Kb8 {[%clk 0:02:20.3]}
21. Ne5 {[%clk 0:01:34]} 21... Rgf8 {[%clk 0:02:18.7]} 22. Rhe1 {[%clk
0:01:25.1]} 22... Ka8 {[%clk 0:02:17.1]} 23. Nxf7 {[%clk 0:01:13.9]} 23... Rxf7
{[%clk 0:02:12.9]} 24. Qxe6 {[%clk 0:01:13.8]} 24... Rfd7 {[%clk 0:02:09]} 25.
Be5 {[%clk 0:01:09.9]} 25... a5 {[%clk 0:01:48.5]} 26. Bxf6 {[%clk 0:01:05.4]}
26... Rxd6 {[%clk 0:01:48.1]} 27. Bxd8 {[%clk 0:01:03.6]} 27... Rxe6 {[%clk
0:01:46.8]} 28. Bxb6 {[%clk 0:01:02.8]} 28... Rxb6 {[%clk 0:01:47.1]} 29. Re8+
{[%clk 0:00:59.5]} 29... Ka7 {[%clk 0:01:45.7]} 30. Be4 {[%clk 0:00:56.2]} 30...
Nc7 {[%clk 0:01:44.3]} 31. Re7 {[%clk 0:00:53]} 31... Bxe4 {[%clk 0:01:29.1]}
32. Rxc7+ {[%clk 0:00:51.9]} 32... Ka6 {[%clk 0:01:24.5]} 33. Re7 {[%clk
0:00:47.9]} 33... Bd3 {[%clk 0:01:20.2]} 34. f3 {[%clk 0:00:43.9]} 34... b4
{[%clk 0:01:18.6]} 35. axb4 {[%clk 0:00:43.3]} 35... axb4 {[%clk 0:01:18.4]} 36.
cxb4 {[%clk 0:00:43.5]} 36... Kb5 {[%clk 0:01:18.4]} 37. Rde1 {[%clk 0:00:42.2]}
37... Kxb4 {[%clk 0:01:17.9]} 38. Ra7 {[%clk 0:00:39.9]} 38... c3 {[%clk
0:01:07.4]} 39. bxc3+ {[%clk 0:00:38.7]} 39... Kxc3 {[%clk 0:01:07.4]} 40. Ra3+
{[%clk 0:00:38]} 40... Kd4 {[%clk 0:01:05.4]} 41. Rxd3+ {[%clk 0:00:16.8]} 41...
Kxd3 {[%clk 0:01:04.3]} 42. Re8 {[%clk 0:00:15.1]} 42... Ra6 {[%clk 0:00:59.6]}
43. Kb2 {[%clk 0:00:14.1]} 43... Rc6 {[%clk 0:00:55.2]} 44. Kb3 {[%clk
0:00:11.8]} 44... Rb6+ {[%clk 0:00:52.6]} 45. Ka3 {[%clk 0:00:11]} 45... Kc3
{[%clk 0:00:50.8]} 46. Rc8+ {[%clk 0:00:10.2]} 46... Kd2 {[%clk 0:00:50.5]} 47.
Re8 {[%clk 0:00:08.5]} 47... Rd6 {[%clk 0:00:49.7]} 48. Kb3 {[%clk 0:00:07.4]}
48... Rd3+ {[%clk 0:00:49.1]} 49. Kc4 {[%clk 0:00:06.5]} 49... Re3 {[%clk
0:00:49.4]} 50. Rh8 {[%clk 0:00:05.6]} 50... Re6 {[%clk 0:00:46.8]} 51. Kd5
{[%clk 0:00:05.6]} 51... Rg6 {[%clk 0:00:39.7]} 52. g4 {[%clk 0:00:04.2]} 52...
Ke3 {[%clk 0:00:38.9]} 53. Rf8 {[%clk 0:00:04.3]} 53... Ra6 {[%clk 0:00:34.7]}
54. Ke5 {[%clk 0:00:03.9]} 54... Kf2 {[%clk 0:00:34.4]} 55. f4 {[%clk
0:00:03.6]} 55... Kg3 {[%clk 0:00:33.6]} 56. f5 {[%clk 0:00:02.8]} 56... Kxh3
{[%clk 0:00:32.8]} 57. f6 {[%clk 0:00:03]} 57... Kxg4 {[%clk 0:00:32.2]} 58. f7
{[%clk 0:00:03]} 58... Ra7 {[%clk 0:00:30.8]} 59. Kf6 {[%clk 0:00:03.1]} 59...
h5 {[%clk 0:00:29.5]} 60. Re8 {[%clk 0:00:02.6]} 60... Rxf7+ {[%clk 0:00:26]}
61. Kxf7 {[%clk 0:00:03.5]} 61... h4 {[%clk 0:00:25.9]} 62. Kg6 {[%clk
0:00:03.5]} 62... h3 {[%clk 0:00:25.7]} 63. Re5 {[%clk 0:00:03.3]} 63... Kg3
{[%clk 0:00:25.2]} 64. Rxg5+ {[%clk 0:00:03.4]} 64... Kf2 {[%clk 0:00:25.1]} 0-1

[Event "*** Titled Tuesday Blitz"]
[Site "Chess.com"]
[Date "2020.03.03"]
[Round "7"]
[White "WeAintSurePal"]
[Black "pedromartinez91"]
[Result "1-0"]
[WhiteElo "2344"]
[BlackElo "2541"]
[TimeControl "180+1"]
[EndTime "14:16:44 PST"]
[Termination "WeAintSurePal won on time"]

1. e4 {[%clk 0:03:00.9]} 1... e6 {[%clk 0:02:59.6]} 2. d4 {[%clk 0:03:00.2]}
2... d5 {[%clk 0:02:59.8]} 3. Nc3 {[%clk 0:03:00.6]} 3... Nf6 {[%clk 0:03:00.1]}
4. e5 {[%clk 0:03:00.8]} 4... Ne4 {[%clk 0:03:00.3]} 5. Nce2 {[%clk 0:02:56.1]}
5... f6 {[%clk 0:02:59.8]} 6. Nf3 {[%clk 0:02:55.8]} 6... c5 {[%clk 0:02:58.1]}
7. c3 {[%clk 0:02:55.2]} 7... Nc6 {[%clk 0:02:58.5]} 8. Ng3 {[%clk 0:02:50.6]}
8... cxd4 {[%clk 0:02:57.8]} 9. cxd4 {[%clk 0:02:50.3]} 9... Bb4+ {[%clk
0:02:56.9]} 10. Bd2 {[%clk 0:02:48.5]} 10... Nxd2 {[%clk 0:02:56.7]} 11. Nxd2
{[%clk 0:02:44.5]} 11... Nxd4 {[%clk 0:02:57.1]} 12. exf6 {[%clk 0:02:36.8]}
12... Qxf6 {[%clk 0:02:54.6]} 13. Bd3 {[%clk 0:02:35.8]} 13... O-O {[%clk
0:02:44.4]} 14. O-O {[%clk 0:02:35.3]} 14... e5 {[%clk 0:02:44.7]} 15. Nb3
{[%clk 0:02:23.5]} 15... e4 {[%clk 0:02:34.7]} 16. Bb1 {[%clk 0:02:19.5]} 16...
Nc6 {[%clk 0:01:42.8]} 17. Qxd5+ {[%clk 0:02:15.8]} 17... Be6 {[%clk 0:01:43.1]}
18. Qxe4 {[%clk 0:02:14]} 18... g6 {[%clk 0:01:42.2]} 19. Qe3 {[%clk 0:01:31.5]}
19... Rae8 {[%clk 0:01:37.7]} 20. Ne4 {[%clk 0:01:29.9]} 20... Qxb2 {[%clk
0:01:36.6]} 21. Qg3 {[%clk 0:01:15.2]} 21... Bxb3 {[%clk 0:01:25.1]} 22. Qxb3+
{[%clk 0:01:16.1]} 22... Qxb3 {[%clk 0:01:25.3]} 23. axb3 {[%clk 0:01:16.7]}
23... a5 {[%clk 0:01:18.8]} 24. f3 {[%clk 0:00:59.9]} 24... Nd4 {[%clk
0:01:13.7]} 25. Bd3 {[%clk 0:00:58.5]} 25... Kg7 {[%clk 0:01:13.9]} 26. Rab1
{[%clk 0:00:49.8]} 26... Rc8 {[%clk 0:01:08.7]} 27. Rfd1 {[%clk 0:00:48.9]}
27... Rfd8 {[%clk 0:01:07.6]} 28. Kf2 {[%clk 0:00:45.3]} 28... Nc6 {[%clk
0:00:59.1]} 29. Ng5 {[%clk 0:00:36.3]} 29... Bc5+ {[%clk 0:00:51.1]} 30. Kf1
{[%clk 0:00:36.4]} 30... Rd6 {[%clk 0:00:46.2]} 31. Bc4 {[%clk 0:00:32.4]} 31...
Rxd1+ {[%clk 0:00:10.6]} 32. Rxd1 {[%clk 0:00:33.3]} 32... Be7 {[%clk
0:00:10.9]} 33. Rd7 {[%clk 0:00:28.4]} 33... h6 {[%clk 0:00:09]} 34. Ne4 {[%clk
0:00:23.2]} 34... Rd8 {[%clk 0:00:05.5]} 35. Rxb7 {[%clk 0:00:21.6]} 35... Kf8
{[%clk 0:00:02.1]} 36. Rc7 {[%clk 0:00:17.8]} 36... Nb4 {[%clk 0:00:03]} 37. Nc5
{[%clk 0:00:16.1]} 37... Bxc5 {[%clk 0:00:02.6]} 38. Rxc5 {[%clk 0:00:17]} 38...
Rd1+ {[%clk 0:00:02.6]} 39. Ke2 {[%clk 0:00:17.3]} 39... Rb1 {[%clk 0:00:03.2]}
40. Rxa5 {[%clk 0:00:16.6]} 40... Rb2+ {[%clk 0:00:03.3]} 41. Ke3 {[%clk
0:00:16.6]} 41... Rxg2 {[%clk 0:00:03.5]} 42. Ra7 {[%clk 0:00:16.9]} 42... Rxh2
{[%clk 0:00:03.1]} 43. Rf7+ {[%clk 0:00:16.6]} 43... Ke8 {[%clk 0:00:03.1]} 44.
Rf6 {[%clk 0:00:17.1]} 44... g5 {[%clk 0:00:03.2]} 45. Re6+ {[%clk 0:00:16.7]}
45... Kd8 {[%clk 0:00:03.3]} 46. Rb6 {[%clk 0:00:17.6]} 46... Nc2+ {[%clk
0:00:01.9]} 47. Ke4 {[%clk 0:00:17.7]} 47... Kc7 {[%clk 0:00:02.8]} 48. Rg6
{[%clk 0:00:16.8]} 48... Ne1 {[%clk 0:00:03.7]} 49. Rg7+ {[%clk 0:00:16.8]}
49... Kb6 {[%clk 0:00:03.4]} 50. Rg6+ {[%clk 0:00:17.2]} 50... Kc5 {[%clk
0:00:03.6]} 51. f4 {[%clk 0:00:17.5]} 51... Ng2 {[%clk 0:00:04.4]} 52. fxg5
{[%clk 0:00:17.2]} 52... Nh4 {[%clk 0:00:04.9]} 53. Rxh6 {[%clk 0:00:16.8]} 1-0

[Event "*** Titled Tuesday Blitz"]
[Site "Chess.com"]
[Date "2020.03.03"]
[Round "7"]
[White "Art_Vandelay1980"]
[Black "OparinGrigoriy"]
[Result "1-0"]
[WhiteElo "2780"]
[BlackElo "2994"]
[TimeControl "180+1"]
[EndTime "14:16:49 PST"]
[Termination "Art_Vandelay1980 won by checkmate"]

1. e4 {[%clk 0:03:00.9]} 1... e5 {[%clk 0:02:59.3]} 2. Nf3 {[%clk 0:03:00.1]}
2... Nc6 {[%clk 0:02:59.8]} 3. Bc4 {[%clk 0:02:59.6]} 3... Nf6 {[%clk 0:03:00]}
4. d3 {[%clk 0:02:57.7]} 4... h6 {[%clk 0:03:00.3]} 5. O-O {[%clk 0:02:56.3]}
5... d6 {[%clk 0:02:59.5]} 6. c3 {[%clk 0:02:55.1]} 6... g5 {[%clk 0:02:59]} 7.
Nbd2 {[%clk 0:02:52.3]} 7... Bg7 {[%clk 0:02:59.5]} 8. Bb3 {[%clk 0:02:51.8]}
8... a6 {[%clk 0:02:59.2]} 9. Nc4 {[%clk 0:02:50.7]} 9... Be6 {[%clk 0:02:59.5]}
10. Re1 {[%clk 0:02:47.8]} 10... O-O {[%clk 0:02:46.2]} 11. h4 {[%clk
0:02:34.6]} 11... g4 {[%clk 0:02:42.5]} 12. Nh2 {[%clk 0:02:34.7]} 12... Qd7
{[%clk 0:02:35.6]} 13. Nf1 {[%clk 0:02:29.3]} 13... d5 {[%clk 0:02:21.5]} 14.
exd5 {[%clk 0:02:24.3]} 14... Nxd5 {[%clk 0:02:22.4]} 15. Ng3 {[%clk 0:02:23]}
15... Nf4 {[%clk 0:02:01.6]} 16. Bxf4 {[%clk 0:02:12.5]} 16... exf4 {[%clk
0:02:02.5]} 17. Nh5 {[%clk 0:02:13.1]} 17... f3 {[%clk 0:01:42]} 18. gxf3 {[%clk
0:01:57.6]} 18... Rae8 {[%clk 0:01:13.4]} 19. d4 {[%clk 0:01:35.8]} 19... Bh8
{[%clk 0:00:29.2]} 20. Ne3 {[%clk 0:01:27.2]} 20... Bxb3 {[%clk 0:00:23.7]} 21.
axb3 {[%clk 0:01:24.6]} 21... f5 {[%clk 0:00:23.5]} 22. fxg4 {[%clk 0:01:20.6]}
22... Ne7 {[%clk 0:00:17.6]} 23. Qf3 {[%clk 0:01:15.6]} 23... Kh7 {[%clk
0:00:14.6]} 24. Nxf5 {[%clk 0:01:05]} 24... Nxf5 {[%clk 0:00:15.5]} 25. Rxe8
{[%clk 0:01:04.1]} 25... Qxe8 {[%clk 0:00:16.4]} 26. gxf5 {[%clk 0:01:03.1]}
26... Rg8+ {[%clk 0:00:15.2]} 27. Kh1 {[%clk 0:01:02.4]} 27... Qf7 {[%clk
0:00:11.9]} 28. Rg1 {[%clk 0:00:55.3]} 28... Rxg1+ {[%clk 0:00:09.9]} 29. Kxg1
{[%clk 0:00:56.2]} 29... Bf6 {[%clk 0:00:07.8]} 30. Qg4 {[%clk 0:00:51.2]} 30...
Be7 {[%clk 0:00:06.7]} 31. f6 {[%clk 0:00:47.5]} 31... Bd6 {[%clk 0:00:04.7]}
32. Qf5+ {[%clk 0:00:38.5]} 32... Qg6+ {[%clk 0:00:05.1]} 33. Ng3 {[%clk
0:00:32.5]} 33... Bf8 {[%clk 0:00:02.5]} 34. h5 {[%clk 0:00:31.1]} 34... Qxf5
{[%clk 0:00:02.8]} 35. Nxf5 {[%clk 0:00:32]} 35... Kg8 {[%clk 0:00:03.7]} 36.
Ng3 {[%clk 0:00:21.9]} 36... Kf7 {[%clk 0:00:03.9]} 37. Ne4 {[%clk 0:00:22.4]}
37... Ke6 {[%clk 0:00:04.4]} 38. Kg2 {[%clk 0:00:21.5]} 38... Kf5 {[%clk
0:00:04.8]} 39. Kf3 {[%clk 0:00:21.6]} 39... c6 {[%clk 0:00:05.2]} 40. b4 {[%clk
0:00:21.1]} 40... b6 {[%clk 0:00:03.7]} 41. b3 {[%clk 0:00:17.1]} 41... a5
{[%clk 0:00:03.7]} 42. bxa5 {[%clk 0:00:16.9]} 42... bxa5 {[%clk 0:00:04.6]} 43.
Ke3 {[%clk 0:00:16.9]} 43... Kg4 {[%clk 0:00:04.3]} 44. c4 {[%clk 0:00:15.6]}
44... Kxh5 {[%clk 0:00:04.2]} 45. d5 {[%clk 0:00:15.9]} 45... cxd5 {[%clk
0:00:04.7]} 46. cxd5 {[%clk 0:00:16.5]} 46... Kg6 {[%clk 0:00:02.6]} 47. d6
{[%clk 0:00:17]} 47... Bxd6 {[%clk 0:00:01.9]} 48. Nxd6 {[%clk 0:00:17.6]} 48...
Kxf6 {[%clk 0:00:02.8]} 49. Nc4 {[%clk 0:00:17.8]} 49... h5 {[%clk 0:00:02.9]}
50. Nxa5 {[%clk 0:00:17.6]} 50... h4 {[%clk 0:00:03.2]} 51. Kf3 {[%clk
0:00:18.1]} 51... Kf5 {[%clk 0:00:04.1]} 52. b4 {[%clk 0:00:17.9]} 52... Ke5
{[%clk 0:00:04.4]} 53. b5 {[%clk 0:00:16.7]} 53... Kd6 {[%clk 0:00:05]} 54. b6
{[%clk 0:00:17.1]} 54... Kd7 {[%clk 0:00:05.3]} 55. b7 {[%clk 0:00:16.5]} 55...
Kc7 {[%clk 0:00:05.4]} 56. Kg4 {[%clk 0:00:16.9]} 56... Kb8 {[%clk 0:00:05.9]}
57. Kxh4 {[%clk 0:00:17.4]} 57... Ka7 {[%clk 0:00:06.8]} 58. f4 {[%clk
0:00:17.9]} 58... Kb8 {[%clk 0:00:07.4]} 59. f5 {[%clk 0:00:18.5]} 59... Ka7
{[%clk 0:00:08.3]} 60. f6 {[%clk 0:00:19.2]} 60... Ka6 {[%clk 0:00:09.2]} 61. f7
{[%clk 0:00:19.2]} 61... Kxa5 {[%clk 0:00:09.3]} 62. b8=Q {[%clk 0:00:19]} 62...
Ka6 {[%clk 0:00:09.9]} 63. f8=Q {[%clk 0:00:18.2]} 63... Ka5 {[%clk 0:00:10.8]}
64. Qa3# {[%clk 0:00:18.1]} 1-0

[Event "*** Titled Tuesday Blitz"]
[Site "Chess.com"]
[Date "2020.03.03"]
[Round "7"]
[White "PursuitOfHappyness2"]
[Black "HouseOfDurin"]
[Result "1-0"]
[WhiteElo "2457"]
[BlackElo "2069"]
[TimeControl "180+1"]
[EndTime "14:17:00 PST"]
[Termination "PursuitOfHappyness2 won on time"]

1. Nf3 {[%clk 0:03:00.4]} 1... c5 {[%clk 0:02:59.9]} 2. g3 {[%clk 0:03:00.7]}
2... Nc6 {[%clk 0:03:00.3]} 3. d4 {[%clk 0:03:00.7]} 3... cxd4 {[%clk 0:03:00]}
4. Nxd4 {[%clk 0:03:01.6]} 4... g6 {[%clk 0:03:00.7]} 5. Bg2 {[%clk 0:03:01.1]}
5... Bg7 {[%clk 0:03:00.8]} 6. Nb3 {[%clk 0:03:01.3]} 6... Nf6 {[%clk
0:02:58.2]} 7. O-O {[%clk 0:03:01.1]} 7... O-O {[%clk 0:02:58.6]} 8. Nc3 {[%clk
0:03:01.2]} 8... b6 {[%clk 0:02:56.5]} 9. a4 {[%clk 0:02:48.7]} 9... Bb7 {[%clk
0:02:54.6]} 10. Bf4 {[%clk 0:02:48.3]} 10... d6 {[%clk 0:02:34.7]} 11. a5 {[%clk
0:02:43.4]} 11... Nxa5 {[%clk 0:02:30.6]} 12. Nxa5 {[%clk 0:02:42.7]} 12... Bxg2
{[%clk 0:02:29.3]} 13. Kxg2 {[%clk 0:02:43.6]} 13... bxa5 {[%clk 0:02:28.9]} 14.
Qd3 {[%clk 0:02:36.9]} 14... Qb6 {[%clk 0:02:18]} 15. Be3 {[%clk 0:02:22.2]}
15... Qc6+ {[%clk 0:02:02.3]} 16. Kg1 {[%clk 0:02:20.8]} 16... Ng4 {[%clk
0:01:41]} 17. Bd4 {[%clk 0:02:15.8]} 17... Ne5 {[%clk 0:01:40.5]} 18. Bxe5
{[%clk 0:02:05.7]} 18... Bxe5 {[%clk 0:01:41.4]} 19. Nd5 {[%clk 0:02:05.6]}
19... Qd7 {[%clk 0:01:26.2]} 20. c3 {[%clk 0:01:50.6]} 20... Rab8 {[%clk
0:01:17.3]} 21. Ra2 {[%clk 0:01:38.5]} 21... Rb7 {[%clk 0:01:00.7]} 22. Rfa1
{[%clk 0:01:25]} 22... Rfb8 {[%clk 0:01:00.4]} 23. Rxa5 {[%clk 0:01:03]} 23...
Rxb2 {[%clk 0:01:00]} 24. Rxa7 {[%clk 0:01:02.7]} 24... R2b7 {[%clk 0:00:58.6]}
25. Rxb7 {[%clk 0:00:42.8]} 25... Qxb7 {[%clk 0:00:59.5]} 26. Ra4 {[%clk
0:00:34.9]} 26... Qb1+ {[%clk 0:00:45.7]} 27. Kg2 {[%clk 0:00:25.2]} 27... e6
{[%clk 0:00:42.5]} 28. Ne7+ {[%clk 0:00:24.3]} 28... Kg7 {[%clk 0:00:42.2]} 29.
Nc6 {[%clk 0:00:21.6]} 29... Qxd3 {[%clk 0:00:39.2]} 30. exd3 {[%clk 0:00:22.5]}
30... Rb5 {[%clk 0:00:32.8]} 31. c4 {[%clk 0:00:17.9]} 31... Rc5 {[%clk
0:00:29.8]} 32. d4 {[%clk 0:00:17.3]} 32... Rxc6 {[%clk 0:00:28.9]} 33. dxe5
{[%clk 0:00:18.2]} 33... dxe5 {[%clk 0:00:25.9]} 34. Kf3 {[%clk 0:00:18]} 34...
f5 {[%clk 0:00:23.1]} 35. Ke3 {[%clk 0:00:18.1]} 35... Kf6 {[%clk 0:00:21.3]}
36. Kd3 {[%clk 0:00:18.1]} 36... g5 {[%clk 0:00:17]} 37. f3 {[%clk 0:00:17.6]}
37... h5 {[%clk 0:00:16.7]} 38. h3 {[%clk 0:00:17.1]} 38... g4 {[%clk
0:00:14.6]} 39. hxg4 {[%clk 0:00:16.7]} 39... hxg4 {[%clk 0:00:14.5]} 40. fxg4
{[%clk 0:00:16.3]} 40... fxg4 {[%clk 0:00:14.7]} 41. Ra5 {[%clk 0:00:16.5]}
41... Rd6+ {[%clk 0:00:11.6]} 42. Ke4 {[%clk 0:00:16.4]} 42... Rd4+ {[%clk
0:00:11.2]} 43. Ke3 {[%clk 0:00:16.6]} 43... Rxc4 {[%clk 0:00:11.4]} 44. Ra8
{[%clk 0:00:17]} 44... Rc3+ {[%clk 0:00:11.4]} 45. Kf2 {[%clk 0:00:17]} 45...
Rf3+ {[%clk 0:00:11.2]} 46. Kg2 {[%clk 0:00:17.3]} 46... e4 {[%clk 0:00:07.7]}
47. Rg8 {[%clk 0:00:16]} 47... Kf5 {[%clk 0:00:06.4]} 48. Rf8+ {[%clk
0:00:15.3]} 48... Ke5 {[%clk 0:00:06.3]} 49. Rg8 {[%clk 0:00:15.5]} 49... e3
{[%clk 0:00:04.8]} 50. Rxg4 {[%clk 0:00:15.4]} 50... Rf2+ {[%clk 0:00:04.1]} 51.
Kg1 {[%clk 0:00:15.4]} 51... Rf7 {[%clk 0:00:01.6]} 52. Ra4 {[%clk 0:00:13.6]}
1-0